bitfinex/quotes_ETHUSD_20240608
["timestamp","ask_amount","ask_price","bid_price","bid_amount"]
[1717808889593,0.721,3689.0,3688.0,3.43248]
[1717808889959,0.38207421,3688.9,3688.0,3.43248]
[1717808890605,0.721,3689.0,3688.0,3.43248]
[1717808890759,0.38207421,3688.8,3688.0,3.43248]
[1717808890964,0.721,3689.0,3688.0,3.43248]
[1717808891208,0.38207421,3688.7,3688.0,2.71148]
[1717808891402,0.721,3689.0,3688.0,2.71148]
[1717808891565,0.38207421,3688.6,3688.0,2.71148]
[1717808891758,0.721,3688.8,3688.0,2.71148]
[1717808892274,0.38207421,3688.7,3688.0,2.71148]
[1717808893557,0.38207421,3688.7,3688.2,2.71129]
[1717808894095,0.38211808,3688.6,3688.2,2.71129]
[1717808894315,0.721,3689.1,3688.2,2.71129]
[1717808894476,0.38211808,3688.5,3688.2,2.71129]
[1717808894671,0.721,3689.1,3688.2,2.71129]
[1717808894976,0.38211808,3688.4,3688.2,2.71129]
[1717808895180,0.721,3689.1,3688.2,2.71129]
[1717808895387,1.35865177,3689.1,3688.2,2.71129]
[1717808895581,0.38211808,3689.0,3688.2,2.71129]
[1717808897084,0.721,3688.9,3688.2,2.71129]
[1717808897283,1.10314548,3688.9,3688.2,2.71129]
[1717808899159,1.10314548,3688.9,3687.8,0.721]
[1717808899380,0.721,3688.6,3687.8,2.71163]
[1717808902970,0.38214548,3688.5,3687.8,2.71163]
[1717808913409,0.38214548,3688.5,3687.8,4.10448466]
[1717808914001,0.721,3688.8,3687.8,4.10448466]
[1717808914203,0.38209614,3688.4,3687.8,4.10448466]
[1717808914402,0.721,3688.8,3687.8,4.10448466]
[1717808914602,0.38209614,3688.3,3687.8,4.10448466]
[1717808914803,0.721,3688.8,3687.8,4.10448466]
[1717808915289,0.38209614,3688.7,3687.8,4.10448466]
[1717808915529,0.721,3688.8,3687.8,4.10448466]
[1717808915715,0.38209614,3688.6,3687.8,4.10448466]
[1717808916031,0.721,3688.8,3687.8,4.10448466]
[1717808916524,0.38209614,3688.7,3688.1,2.71138]
[1717808920824,2.84437773,3688.9,3688.1,2.71138]
[1717808921018,0.38209614,3688.6,3688.1,2.71138]
[1717808921317,2.84437773,3688.9,3688.1,2.71138]
[1717808921318,0.38209614,3688.5,3688.1,2.71138]
[1717808921486,2.84437773,3688.9,3688.1,2.71138]
[1717808921689,0.38209614,3688.4,3688.1,2.71138]
[1717808921912,2.84437773,3688.9,3688.1,2.71138]
[1717808922109,0.38209614,3688.3,3688.1,2.71138]
[1717808922417,2.84437773,3688.9,3688.1,2.71138]
[1717808922627,0.38209614,3688.2,3688.1,2.71138]
[1717808922833,2.84437773,3688.9,3688.1,2.71138]
[1717808923035,2.88581977,3688.9,3688.1,2.71138]
[1717808923239,0.38209614,3688.8,3688.1,2.71138]
[1717808928218,1.10309614,3688.8,3688.1,2.71138]
[1717808940709,0.721,3688.6,3688.1,2.71138]
[1717808941142,0.721,3688.6,3687.7,2.71169]
[1717808941345,0.721,3688.6,3687.8,1.39285466]
[1717808941549,0.38216194,3688.5,3688.1,2.71141]
[1717808941707,0.38216194,3688.5,3687.7,3.43269]
[1717808941708,0.58617773,3689.4,3688.5,2.4798]
[1717808941913,0.3852378,3689.3,3688.5,2.4798]
[1717808942115,0.721,3689.5,3688.5,2.4798]
[1717808942539,0.721,3689.5,3688.6,2.71104]
[1717808944758,0.721,3689.3,3688.6,2.71104]
[1717808945871,0.36969063,3689.2,3688.6,2.71104]
[1717808947849,0.721,3688.9,3688.3,2.4798]
[1717808948369,0.36967953,3688.8,3688.3,2.4798]
[1717808948943,0.721,3689.1,3688.3,2.4798]
[1717808949175,0.36967953,3688.7,3688.3,2.4798]
[1717808949340,0.721,3689.1,3688.3,2.4798]
[1717808949542,0.36967953,3688.6,3688.3,2.4798]
[1717808949775,0.721,3689.1,3688.3,2.4798]
[1717808950072,0.36967953,3688.5,3688.3,2.4798]
[1717808950234,0.721,3689.1,3688.3,2.4798]
[1717808950658,0.36967953,3689.0,3688.3,2.4798]
[1717808951770,0.36967953,3689.0,3688.2,2.71134]
[1717808952075,0.721,3688.9,3688.2,2.71134]
[1717808952640,0.36967953,3688.8,3688.2,2.71134]
[1717808959357,0.721,3688.7,3688.2,2.71134]
[1717808959553,2.4355,3688.6,3688.2,2.71134]
[1717808959763,2.80517953,3688.6,3688.2,2.71134]
[1717808961689,0.721,3688.5,3687.8,2.71164]
[1717808962047,0.36939086,3688.4,3687.8,2.71164]
[1717808967901,0.721,3688.3,3687.4,5.12202]
[1717808968106,0.7887806,3688.3,3687.4,5.12202]
[1717808968499,0.36933258,3688.2,3687.4,5.12202]
[1717808969384,2.4355,3688.1,3687.4,5.12202]
[1717808969588,2.80482703,3688.1,3687.4,5.12202]
[1717808970609,2.80482703,3688.1,3687.4,2.71192]
[1717808970916,0.3525827,3688.0,3687.4,2.71192]
[1717808971219,0.36923819,3687.9,3687.4,2.71192]
[1717808971706,2.4355,3688.1,3687.4,2.71192]
[1717808971871,0.36923819,3687.8,3687.4,2.71192]
[1717808972077,2.4355,3688.1,3687.4,2.71192]
[1717808972310,0.36923819,3687.7,3687.4,2.71192]
[1717808972607,0.36923819,3687.6,3687.4,2.71192]
[1717808972779,0.31565,3688.0,3687.4,2.71192]
[1717808972979,0.36923819,3687.5,3687.4,2.71192]
[1717808973179,2.4355,3688.1,3687.4,2.71192]
[1717808973407,0.36923819,3687.5,3687.4,2.71192]
[1717808973713,2.4355,3688.1,3687.4,2.71192]
[1717808973911,0.36923819,3687.5,3687.4,2.71192]
[1717808974525,2.4355,3688.1,3687.4,2.71192]
[1717808974683,0.36923819,3687.5,3687.4,2.71192]
[1717808975076,2.4355,3688.1,3687.4,2.71192]
[1717808975316,0.36923819,3687.5,3687.4,2.71192]
[1717808975536,2.4958,3688.5,3687.4,2.71192]
[1717808975681,2.4958,3688.5,3687.4,5.71082]
[1717808975682,0.36923819,3687.5,3687.4,5.71082]
[1717808976022,2.4958,3688.5,3687.4,5.71082]
[1717808976216,0.36919932,3687.5,3687.4,5.71082]
[1717808976390,0.721,3688.4,3687.4,5.71082]
[1717808976589,0.36919932,3687.5,3687.4,5.71082]
[1717808976816,0.721,3688.4,3687.4,5.71082]
[1717808977128,1.30030723,3688.4,3687.4,5.71082]
[1717808977423,0.36919932,3688.3,3687.4,5.71082]
[1717808979893,0.36919932,3688.3,3687.7,2.71165]
[1717808980287,2.4958,3688.5,3687.7,2.71165]
[1717808980935,0.36919932,3688.4,3687.7,2.71165]
[1717808985533,0.36919932,3688.4,3687.6,0.721]
[1717808985733,0.36919932,3688.4,3687.6,2.11385466]
[1717808987639,0.72779925,3688.4,3687.3,5.5818]
[1717808987932,0.35859993,3688.4,3687.3,5.5818]
[1717808988336,0.36919652,3688.3,3687.3,5.5818]
[1717808989062,0.35859993,3688.4,3687.3,3.091]
[1717808989204,2.4906,3688.2,3687.3,2.37]
[1717808990034,0.36919929,3688.1,3687.3,2.37]
[1717808991300,0.36919929,3688.1,3687.3,3.091]
[1717808993744,0.36919929,3688.1,3687.3,2.37]
[1717808993745,1.09019929,3688.1,3687.3,2.37]
[1717808993946,1.47014167,3688.1,3687.3,2.37]
[1717809000423,2.4266,3687.8,3687.3,2.37]
[1717809000662,2.4266,3687.8,3686.6,9.9018]
[1717809000663,0.721,3687.5,3686.6,9.9018]
[1717809000849,2.4266,3687.4,3686.6,3.86465466]
[1717809001049,2.4266,3687.4,3686.6,2.4718]
[1717809001250,0.36899659,3687.3,3686.6,2.4718]
[1717809004469,2.4266,3687.7,3686.9,0.721]
[1717809004631,0.36882995,3687.2,3686.9,0.721]
[1717809004833,2.4266,3687.7,3686.9,0.721]
[1717809005163,0.36882995,3687.1,3686.9,0.721]
[1717809005474,0.36882995,3687.0,3686.9,0.721]
[1717809005627,2.4266,3687.7,3686.9,0.721]
[1717809005830,0.36876332,3687.0,3686.9,0.721]
[1717809006026,2.4266,3687.7,3686.9,0.721]
[1717809006244,2.74136,3687.7,3686.9,0.721]
[1717809006624,0.36876332,3687.6,3686.9,0.721]
[1717809006824,0.36876332,3687.6,3686.6,3.1928]
[1717809007447,0.36876332,3687.6,3686.9,0.721]
[1717809007852,0.36876332,3687.6,3686.7,0.721]
[1717809008533,2.4266,3687.5,3686.7,0.721]
[1717809008738,2.4266,3687.5,3686.5,0.721]
[1717809010001,2.4266,3687.5,3685.8,8.82906028]
[1717809010002,2.4266,3688.2,3685.9,2.4718]
[1717809010135,0.96862446,3688.3,3685.9,3.86465466]
[1717809010136,2.4266,3687.1,3685.9,3.86465466]
[1717809010339,0.31476,3687.0,3686.2,0.721]
[1717809010663,0.3687911,3687.0,3686.2,0.721]
[1717809010863,2.4266,3687.1,3686.2,0.721]
[1717809011238,0.721,3687.0,3685.9,2.4718]
[1717809011438,0.721,3687.0,3685.9,3.1928]
[1717809013470,2.4266,3687.1,3685.9,3.1928]
[1717809013668,2.4266,3687.1,3685.9,4.58565466]
[1717809013876,3.1476,3687.1,3686.1,0.721]
[1717809014191,0.36852717,3687.0,3686.1,0.721]
[1717809016194,0.36852717,3687.0,3686.2,3.73405466]
[1717809016394,0.36852717,3687.0,3686.3,0.721]
[1717809020884,0.721,3686.8,3686.2,3.73405466]
[1717809021213,0.36850219,3686.9,3686.2,3.73405466]
[1717809021421,3.1476,3687.1,3686.2,3.73405466]
[1717809021862,0.36850219,3687.0,3686.2,3.73405466]
[1717809022055,0.36850219,3687.0,3686.0,2.3412]
[1717809022296,0.72011241,3687.0,3686.0,3.0622]
[1717809022524,0.721,3686.9,3686.0,2.3412]
[1717809023022,0.721,3686.3,3685.5,2.37]
[1717809023171,2.4961,3686.2,3685.5,2.37]
[1717809023882,0.36833266,3686.1,3685.4,2.3412]
[1717809024085,0.36833266,3686.1,3685.4,3.73405466]
[1717809024272,0.36833266,3686.1,3684.7,7.43]
[1717809024273,0.721,3685.9,3684.8,2.3412]
[1717809024469,0.721,3685.9,3685.0,0.721]
[1717809024711,0.721,3685.9,3685.0,1.39285466]
[1717809026179,0.721,3685.9,3685.0,2.11385466]
[1717809026708,2.4961,3686.2,3685.0,2.11385466]
[1717809027010,2.4961,3686.2,3685.2,0.721]
[1717809028214,0.20219169,3686.3,3685.4,2.3412]
[1717809028519,0.36793523,3686.2,3685.6,0.721]
[1717809028814,0.36793523,3686.2,3685.6,2.11385466]
[1717809032692,0.36793523,3686.2,3685.6,1.39285466]
[1717809033090,0.36793523,3686.2,3685.0,2.3412]
[1717809033295,0.721,3686.0,3685.1,1.39285466]
[1717809033632,0.42259284,3685.9,3685.1,1.39285466]
[1717809033977,0.721,3686.0,3685.1,1.39285466]
[1717809034390,0.42259284,3685.9,3685.1,1.39285466]
[1717809034811,0.721,3686.0,3685.1,1.39285466]
[1717809034994,3.0607,3686.0,3685.0,2.3412]
[1717809035383,0.42259284,3685.9,3685.0,2.3412]
[1717809035829,0.42259284,3685.9,3685.1,0.721]
[1717809038020,0.42259284,3685.9,3684.4,7.43]
[1717809038234,3.0607,3686.0,3684.5,4.24365466]
[1717809038432,2.3397,3686.0,3685.0,0.721]
[1717809038612,0.42259284,3685.9,3685.0,0.721]
[1717809039117,0.42259284,3685.9,3684.5,3.69365466]
[1717809039325,0.721,3685.8,3684.9,0.721]
[1717809039711,0.42259284,3685.7,3684.9,0.721]
[1717809040624,0.42259284,3685.6,3684.9,0.721]
[1717809040834,3.0607,3686.0,3684.9,0.721]
[1717809041148,0.42259284,3685.5,3684.9,0.721]
[1717809041348,3.0607,3686.0,3684.9,0.721]
[1717809041851,0.42259284,3685.9,3684.9,0.721]
[1717809045831,0.42259284,3685.9,3685.1,0.721]
[1717809046046,0.42259284,3685.9,3685.1,3.0218]
[1717809046236,0.42259284,3685.9,3685.2,1.39285466]
[1717809046431,0.92319169,3686.3,3685.2,1.39285466]
[1717809046635,0.67677088,3686.2,3685.2,1.39285466]
[1717809046962,0.721,3686.1,3685.2,1.39285466]
[1717809047131,2.3397,3686.0,3685.2,1.39285466]
[1717809047532,0.42258171,3685.9,3685.2,1.39285466]
[1717809050661,0.42258171,3685.9,3685.0,0.721]
[1717809056762,1.14358171,3685.9,3684.8,2.3008]
[1717809057059,0.721,3685.9,3684.9,2.11385466]
[1717809060359,2.2696,3685.8,3684.9,2.11385466]
[1717809060565,2.2696,3685.8,3684.9,1.39285466]
[1717809060729,0.42271791,3685.7,3684.9,1.39285466]
[1717809063280,2.2696,3685.6,3684.9,1.39285466]
[1717809063647,0.42271791,3685.5,3684.9,1.39285466]
[1717809064241,0.42271791,3685.5,3684.5,2.2772]
[1717809064441,2.2696,3685.6,3684.7,0.721]
[1717809064648,2.2696,3685.6,3684.8,1.39285466]
[1717809072796,2.49656,3685.6,3684.4,1.13285436]
[1717809072996,0.721,3685.3,3684.4,1.39285466]
[1717809073194,2.2696,3685.0,3684.3,3.50285436]
[1717809073382,2.2696,3685.0,3684.3,2.37]
[1717809079405,2.275,3684.6,3683.7,7.43]
[1717809079571,2.275,3684.6,3683.5,0.721]
[1717809079900,0.721,3684.5,3683.6,1.39285466]
[1717809081770,2.275,3684.4,3683.6,1.39285466]
[1717809082111,0.42215078,3684.3,3683.6,1.39285466]
[1717809083876,0.42215078,3684.3,3683.0,11.00835436]
[1717809084073,2.275,3684.4,3683.5,0.721]
[1717809085171,2.5746,3684.4,3683.5,0.721]
[1717809085585,0.42215078,3684.3,3683.5,0.721]
[1717809087273,2.275,3683.9,3682.6,7.43]
[1717809087587,2.275,3683.9,3682.5,15.88285436]
[1717809087588,2.275,3683.9,3683.1,0.721]
[1717809088091,2.275,3683.9,3683.3,2.71492]
[1717809089503,2.5746,3683.9,3683.3,2.71492]
[1717809089705,0.42183925,3683.8,3683.3,2.71492]
[1717809091628,2.275,3683.7,3683.3,2.71492]
[1717809092119,0.42173631,3683.6,3683.3,2.71492]
[1717809104647,0.42173631,3683.6,3682.7,2.71532]
[1717809104888,0.721,3683.4,3682.7,2.71532]
[1717809105317,2.4574,3683.2,3682.7,2.71532]
[1717809105468,2.4574,3683.1,3682.7,2.71532]
[1717809105990,0.42151375,3683.0,3682.7,2.71532]
[1717809106151,1.14251375,3683.0,3682.7,2.71532]
[1717809106352,1.50250513,3683.0,3682.7,2.71532]
[1717809106886,2.4574,3682.9,3682.3,2.71569]
[1717809107394,0.42139408,3682.8,3682.3,2.71569]
[1717809108893,2.4574,3682.7,3682.3,2.71569]
[1717809109089,2.87867163,3682.7,3682.3,2.71569]
[1717809109290,2.87867163,3682.7,3681.9,2.71598]
[1717809109291,0.721,3682.6,3681.9,2.71598]
[1717809109491,0.721,3682.1,3681.5,2.71627]
[1717809109698,2.3468,3682.0,3681.5,2.71627]
[1717809110401,0.42117697,3681.9,3681.5,2.71627]
[1717809112225,0.42117697,3681.9,3681.5,3.43727]
[1717809112386,2.3468,3682.4,3681.5,2.71627]
[1717809112578,0.42117697,3681.8,3681.5,2.71627]
[1717809112982,2.92512,3682.4,3681.5,2.71627]
[1717809113208,0.42117697,3681.7,3681.5,2.71627]
[1717809113408,2.92512,3682.4,3681.5,2.71627]
[1717809113707,0.42117697,3682.3,3681.5,2.71627]
[1717809114102,0.42117697,3682.3,3680.8,2.37]
[1717809114103,0.42117697,3682.3,3681.9,2.71597]
[1717809114348,2.4271,3682.7,3682.1,2.71584]
[1717809114530,0.42103777,3682.2,3682.1,2.71584]
[1717809114735,2.4271,3682.7,3682.1,2.71584]
[1717809123147,2.4271,3683.0,3682.4,2.71554]
[1717809123336,0.42106007,3682.6,3682.4,2.71554]
[1717809123539,2.4271,3683.0,3682.4,2.71554]
[1717809123746,0.42106007,3682.5,3682.4,2.71554]
[1717809124063,2.4271,3683.0,3682.4,2.71554]
[1717809124221,0.42106007,3682.5,3682.4,2.71554]
[1717809124416,2.4271,3683.0,3682.4,2.71554]
[1717809124658,0.42111575,3682.5,3682.4,2.71554]
[1717809124856,2.4271,3683.0,3682.4,2.71554]
[1717809125034,0.42111575,3682.5,3682.4,2.71554]
[1717809125234,0.31481,3682.9,3682.4,2.71554]
[1717809125460,0.42111575,3682.5,3682.4,2.71554]
[1717809125689,0.31481,3682.9,3682.4,2.71554]
[1717809125881,0.42111575,3682.5,3682.4,2.71554]
[1717809126188,0.42105451,3682.5,3682.4,2.71554]
[1717809126388,0.31481,3682.9,3682.4,2.71554]
[1717809126592,0.42105451,3682.5,3682.4,2.71554]
[1717809126967,0.346291,3682.8,3682.4,2.71554]
[1717809127151,0.42105451,3682.5,3682.4,2.71554]
[1717809127484,0.346291,3682.8,3682.4,2.71554]
[1717809127690,0.42105451,3682.5,3682.4,2.71554]
[1717809127891,2.4271,3683.0,3682.4,2.71554]
[1717809128190,0.42105451,3682.5,3682.4,2.71554]
[1717809128394,0.31481,3682.9,3682.4,2.71554]
[1717809128593,0.42106564,3682.5,3682.4,2.71554]
[1717809128889,0.31481,3682.9,3682.4,2.71554]
[1717809129086,0.42106564,3682.5,3682.4,2.71554]
[1717809129288,0.31481,3682.9,3682.4,2.71554]
[1717809129493,0.42106564,3682.5,3682.4,2.71554]
[1717809130190,2.4271,3683.0,3682.4,2.71554]
[1717809130401,0.42106564,3682.9,3682.4,2.71554]
[1717809150976,0.721,3683.2,3682.4,2.71554]
[1717809151286,0.42090971,3683.1,3682.4,2.71554]
[1717809151489,0.77379068,3683.1,3682.4,2.71554]
[1717809154021,0.42090971,3683.1,3682.9,3.0519]
[1717809154228,0.22927679,3683.7,3682.9,3.0519]
[1717809154394,0.42090039,3683.6,3682.9,3.0519]
[1717809155211,0.42090039,3683.6,3683.4,2.71485]
[1717809159323,2.3499,3683.5,3683.0,2.71517]
[1717809159829,0.42107299,3683.4,3683.0,2.71517]
[1717809161236,0.721,3683.1,3682.5,2.71547]
[1717809161540,0.42101176,3683.0,3682.5,2.71547]
[1717809162091,0.721,3683.0,3682.5,2.71547]
[1717809162291,0.42101176,3682.9,3682.5,2.71547]
[1717809162492,0.721,3683.2,3682.5,2.71547]
[1717809162692,0.42101176,3682.8,3682.5,2.71547]
[1717809163015,0.42101176,3682.7,3682.5,2.71547]
[1717809163215,0.721,3683.2,3682.5,2.71547]
[1717809163403,0.42101176,3683.1,3682.5,2.71547]
[1717809164031,0.56687581,3683.1,3682.5,2.71547]
[1717809165937,0.56687581,3683.1,3682.6,2.2816]
[1717809169138,0.56687581,3683.1,3682.5,2.71547]
[1717809170132,1.28787581,3683.1,3682.5,2.71547]
[1717809171437,2.3857,3683.0,3682.5,2.71547]
[1717809171632,0.7882301,3682.9,3682.5,2.71547]
[1717809173047,0.7882301,3682.9,3682.1,2.4786]
[1717809173048,0.7882301,3682.9,3682.1,5.19443]
[1717809181511,0.7882301,3682.9,3682.3,2.71562]
[1717809183851,0.42087252,3682.9,3682.3,2.71562]
[1717809184629,0.42087252,3682.9,3682.4,0.721]
[1717809184937,0.42087252,3682.9,3682.5,2.7155]
[1717809185149,0.42087252,3682.9,3682.8,3.0788]
[1717809185451,2.56197679,3683.7,3683.0,2.71517]
[1717809185659,0.94859917,3683.6,3683.0,2.71517]
[1717809189759,0.42095049,3683.6,3683.0,2.71517]
[1717809190146,0.42095049,3683.6,3683.0,3.43617]
[1717809191058,0.42095049,3683.6,3683.2,0.721]
[1717809191268,0.42095049,3683.6,3683.3,5.07924]
[1717809197145,0.42095049,3683.6,3683.3,2.71494]
[1717809201459,2.4014,3683.5,3682.9,2.71524]
[1717809201770,0.72640551,3683.4,3682.9,2.71524]
[1717809204663,0.42124278,3683.4,3682.9,2.71524]
[1717809205377,0.42124278,3683.4,3682.9,5.21134]
[1717809206477,0.42124278,3683.4,3682.9,5.93234]
[1717809206884,2.63067679,3683.7,3682.9,5.93234]
[1717809207193,0.42115093,3683.6,3682.9,5.93234]
[1717809207348,0.7984337,3683.6,3682.9,5.93234]
[1717809210681,0.7984337,3683.6,3682.9,2.71524]
[1717809213594,0.06787894,3683.5,3682.9,2.71524]
[1717809213990,0.42114258,3683.4,3682.9,2.71524]
[1717809215754,1.14214258,3683.4,3682.5,2.71553]
[1717809215960,2.56454253,3683.3,3682.5,5.02753]
[1717809216461,0.42114258,3683.2,3682.5,5.02753]
[1717809217360,0.42114258,3683.2,3682.5,2.71553]
[1717809217561,0.29856851,3683.1,3682.5,2.71553]
[1717809218155,0.42114258,3683.0,3682.5,2.71553]
[1717809221904,0.42103958,3682.9,3682.5,2.71553]
[1717809222264,2.56454253,3683.3,3682.5,2.71553]
[1717809222459,0.80832237,3683.2,3682.5,2.71553]
[1717809230389,0.721,3683.1,3682.5,2.71553]
[1717809230590,0.80832237,3683.2,3682.5,2.71553]
[1717809230785,0.42107119,3683.0,3682.5,2.71553]
[1717809231097,0.42107119,3682.9,3682.5,2.71553]
[1717809241735,2.42648618,3682.8,3682.5,2.71553]
[1717809241933,2.80414772,3682.8,3682.5,2.71553]
[1717809242148,0.42103779,3682.7,3682.5,2.71553]
[1717809242633,2.73626154,3682.8,3682.5,2.71553]
[1717809242836,2.73626154,3682.8,3682.0,2.71585]
[1717809242837,0.42103779,3682.6,3682.0,2.71585]
[1717809243047,0.36232519,3682.7,3682.0,2.71585]
[1717809243250,0.42103779,3682.5,3682.0,2.71585]
[1717809243543,0.42103779,3682.4,3682.0,2.71585]
[1717809244048,0.36232519,3682.7,3682.0,2.71585]
[1717809244207,0.42103779,3682.3,3682.0,2.71585]
[1717809244411,0.36232519,3682.7,3682.0,2.71585]
[1717809244902,0.42103779,3682.6,3682.0,2.71585]
[1717809248403,0.42103779,3682.6,3682.1,2.3497]
[1717809248702,0.42099046,3682.5,3682.1,2.3497]
[1717809248908,2.93287034,3683.0,3682.1,2.3497]
[1717809249104,0.42099046,3682.9,3682.1,2.3497]
[1717809252752,0.42099046,3682.9,3682.4,0.721]
[1717809253112,0.42099046,3682.9,3682.4,2.71557]
[1717809259137,0.42099046,3682.9,3682.8,5.02872]
[1717809259322,0.42099046,3682.9,3682.8,5.74972]
[1717809259514,0.20805804,3683.0,3682.8,5.74972]
[1717809262030,0.20805804,3683.0,3682.8,5.02872]
[1717809266219,0.42111852,3682.9,3682.8,5.02872]
[1717809271330,0.42111852,3682.9,3682.8,2.71532]
[1717809299286,0.42111852,3682.9,3682.4,2.71561]
[1717809299484,0.31156766,3682.8,3682.0,2.4239]
[1717809299791,0.42112689,3682.7,3682.0,2.4239]
[1717809300986,0.42112689,3682.7,3682.0,3.1449]
[1717809301184,0.42112689,3682.7,3682.0,5.8608]
[1717809302625,0.42112689,3682.7,3682.0,5.1398]
[1717809302828,0.76385215,3682.7,3682.0,2.7159]
[1717809303028,0.42112689,3682.7,3682.2,0.721]
[1717809303194,0.42112689,3682.7,3682.0,3.4369]
[1717809305638,0.42112689,3682.7,3682.4,0.721]
[1717809305931,2.69455804,3683.0,3682.4,0.721]
[1717809306126,3.09481853,3683.0,3682.3,2.4239]
[1717809306336,0.42109069,3682.9,3682.0,5.1398]
[1717809306657,2.4865,3682.8,3682.0,2.7159]
[1717809306997,0.42109069,3682.7,3682.0,2.7159]
[1717809311000,2.3029,3682.6,3682.0,2.7159]
[1717809311403,0.42109069,3682.5,3682.0,2.7159]
[1717809311819,3.0239,3682.4,3681.5,2.71622]
[1717809312043,2.64739907,3682.3,3681.5,2.71622]
[1717809312340,2.3029,3682.1,3681.5,2.71622]
[1717809312929,0.42085959,3682.0,3681.5,2.71622]
[1717809319858,2.4681,3681.9,3681.5,2.71622]
[1717809320059,2.88883709,3681.9,3681.5,2.71622]
[1717809322429,3.9708208,3681.9,3681.0,2.71659]
[1717809323519,2.4681,3681.8,3681.0,2.71659]
[1717809323920,0.42046694,3681.7,3681.0,2.71659]
[1717809324420,2.5360088,3681.6,3681.0,2.71659]
[1717809324622,0.36774757,3681.5,3681.0,2.71659]
[1717809324817,0.78820615,3681.5,3681.0,2.71659]
[1717809326263,2.4681,3681.4,3680.8,2.37]
[1717809326463,2.88855301,3681.4,3680.8,2.37]
[1717809327138,0.721,3681.0,3680.6,2.71692]
[1717809327360,0.721,3681.0,3680.1,2.71728]
[1717809327361,2.4681,3680.9,3680.1,2.71728]
[1717809327958,0.42038334,3680.8,3680.1,2.71728]
[1717809328585,0.42038334,3680.8,3680.1,3.43828]
[1717809328991,2.4681,3680.9,3680.1,3.43828]
[1717809329197,0.42038334,3680.7,3680.1,3.43828]
[1717809329495,0.42038334,3680.6,3680.1,3.43828]
[1717809329899,0.42038334,3680.6,3680.0,7.59934]
[1717809329900,0.22334156,3681.2,3680.5,3.43802]
[1717809330968,0.22334156,3681.2,3680.5,2.71702]
[1717809332777,0.22334156,3681.2,3680.8,0.721]
[1717809332985,0.22334156,3681.2,3681.1,2.3395]
[1717809334190,0.22334156,3681.2,3681.1,5.05607]
[1717809335863,0.22334156,3681.2,3681.1,2.71657]
[1717809337499,0.22334156,3681.2,3680.6,2.7169]
[1717809338640,0.22334156,3681.2,3680.8,2.71676]
[1717809339624,2.4276,3681.1,3680.8,2.71676]
[1717809339837,0.22334156,3681.2,3680.8,2.71676]
[1717809340133,0.45226866,3681.0,3680.8,2.71676]
[1717809340306,0.22334156,3681.2,3680.8,2.71676]
[1717809340502,0.45221573,3680.9,3680.8,2.71676]
[1717809340711,0.22334156,3681.2,3680.8,2.71676]
[1717809340927,0.45221573,3680.9,3680.8,2.71676]
[1717809341228,0.22334156,3681.2,3680.8,2.71676]
[1717809341435,0.45221573,3680.9,3680.8,2.71676]
[1717809341617,0.94434156,3681.2,3680.8,2.71676]
[1717809341926,0.45221573,3681.1,3680.8,2.71676]
[1717809345309,2.87981573,3681.1,3680.3,2.7171]
[1717809345800,0.45219343,3681.0,3680.3,2.7171]
[1717809348232,0.721,3680.9,3680.3,2.7171]
[1717809348632,0.45219343,3680.8,3680.3,2.7171]
[1717809349862,0.0679246,3681.0,3680.3,2.7171]
[1717809350007,0.45219343,3680.7,3680.3,2.7171]
[1717809350209,0.0679246,3681.0,3680.3,2.7171]
[1717809350610,0.45219343,3680.9,3680.3,2.7171]
[1717809351111,2.4276,3681.1,3680.3,2.7171]
[1717809351316,0.45219343,3680.8,3680.3,2.7171]
[1717809351540,2.4276,3681.1,3680.3,2.7171]
[1717809351729,0.45219343,3680.7,3680.3,2.7171]
[1717809352130,2.4276,3681.1,3680.3,2.7171]
[1717809352335,0.45219343,3680.6,3680.3,2.7171]
[1717809352553,2.4276,3681.1,3680.3,2.7171]
[1717809352770,0.45219343,3680.5,3680.3,2.7171]
[1717809353053,0.45219343,3680.4,3680.3,2.7171]
[1717809353418,2.4276,3681.1,3680.3,2.7171]
[1717809353624,0.84812725,3681.0,3680.3,2.7171]
[1717809353855,0.45219343,3681.0,3680.3,2.7171]
[1717809357224,0.45219343,3681.0,3680.3,3.4381]
[1717809358927,0.45219343,3681.0,3680.4,2.3614]
[1717809360436,0.45219343,3681.0,3680.5,2.71701]
[1717809361435,0.22334156,3681.2,3680.8,2.71674]
[1717809361629,0.45218506,3681.1,3680.8,2.71674]
[1717809361845,0.45218506,3681.1,3681.0,2.71665]
[1717809365448,0.45218506,3681.1,3681.0,3.43765]
[1717809365760,3.1218,3682.2,3681.0,3.43765]
[1717809365976,0.721,3682.0,3681.3,2.71636]
[1717809366295,0.92698938,3682.0,3681.3,2.71636]
[1717809366436,0.45212933,3681.9,3681.3,2.71636]
[1717809368769,2.4008,3681.4,3681.3,2.71636]
[1717809368987,0.721,3681.5,3681.3,2.71636]
[1717809369347,0.45212933,3681.4,3681.3,2.71636]
[1717809369557,0.721,3681.7,3681.3,2.71636]
[1717809369751,0.45119599,3681.4,3681.3,2.71636]
[1717809369966,0.721,3681.7,3681.3,2.71636]
[1717809370167,0.45119599,3681.4,3681.3,2.71636]
[1717809370373,2.4813,3681.8,3681.3,2.71636]
[1717809370551,0.45119599,3681.4,3681.3,2.71636]
[1717809370759,0.721,3681.7,3681.3,2.71636]
[1717809370975,0.45119599,3681.4,3681.3,2.71636]
[1717809371173,0.721,3681.7,3681.3,2.71636]
[1717809371373,0.45119599,3681.4,3681.3,2.71636]
[1717809371578,2.4813,3681.8,3681.3,2.71636]
[1717809371778,0.45119599,3681.4,3681.3,2.71636]
[1717809371952,0.721,3681.8,3681.3,2.71636]
[1717809372141,0.45119599,3681.4,3681.3,2.71636]
[1717809372342,0.721,3681.8,3681.3,2.71636]
[1717809372569,0.45119599,3681.4,3681.3,2.71636]